Cogmind - Beta 9.4 @@@ ROGUE MODE // 2020.02.01 @ 11:22:35 Player: Human Yoyo Result: Destroyed by Y-45 Defender with Beam Rifle Performance ------------- Evolutions (2) 1000 Regions Visited (4) 800 Robots Destroyed (25) 125 Value Destroyed (596) 596 Prototype IDs (1) 20 Alien Tech Used (0) 0 Bonus (0) 0 TOTAL SCORE: 2541 Bonus ------- None Cogmind --------- Core Integrity 0/550 Matter 266/300 Energy 160/160 System Corruption 4% Temperature Cool (21) Movement Walking (120) Location -8/Materials Parts ------- > --- POWER (1) -------- Light Nuclear Core > --- PROPULSION (4) --- Aluminum Leg Aluminum Leg Aluminum Leg > --- UTILITY (3) ------ Advanced Heat Sink Terrain Scan Processor Hacking Suite > --- WEAPON (3) ------- Particle Gun Light Assault Rifle Minigun > --- INVENTORY (4) ---- Light Ion Engine Flight Unit Light Assault Rifle Peak State ------------ > --- POWER ------------ Light Nuclear Core > --- PROPULSION ------- Aluminum Leg Carbon-fiber Leg > --- UTILITY ---------- Advanced Heat Sink Terrain Scan Processor Hacking Suite > --- WEAPON ----------- Heavy Laser Minigun > --- INVENTORY -------- (None) [Rating: 24] Favorites ----------- Power Ion Engine Engine Ion Engine Power Core Light Nuclear Core Propulsion Wheel Treads Light Treads Leg Aluminum Leg Wheel Wheel Hover Unit Airjet Utility Terrain Scan Processor Device Advanced Heat Sink Storage Small Storage Unit Processor Terrain Scan Processor Hackware Hacking Suite Weapon Medium Laser Energy Gun Medium Laser Energy Cannon Beam Cannon Ballistic Gun Heavy Assault Rifle Launcher Grenade Launcher Special Weapon Welding Torch Slashing Weapon Makeshift Axe Build | -11 -10 -9 -9 -8 ------- Run | Scr Mat Mat Min Mat Slots Evolved 4 | . . 2 . 2 Power . | . . . . . Propulsion 2 | . . 2 . . Utility 1 | . . . . 1 Weapon 1 | . . . . 1 Parts Attached 45 | 10 5 5 7 18 Power 4 | 1 . 1 . 2 Engine 2 | 1 . 1 . . Core 2 | . . . . 2 Reactor . | . . . . . Propulsion 17 | 6 . 1 2 8 Treads 1 | . . 1 . . Leg 11 | 2 . . 2 7 Wheel 4 | 4 . . . . Hover 1 | . . . . 1 Flight . | . . . . . Utility 5 | 1 1 . . 3 Device 2 | . . . . 2 Storage 1 | 1 . . . . Processor 1 | . 1 . . . Hackware 1 | . . . . 1 Protection . | . . . . . Artifact . | . . . . . Weapon 19 | 2 4 3 5 5 Energy Gun 8 | 1 1 2 2 2 Energy Cannon 1 | . 1 . . . Ballistic Gun 5 | 1 . 1 1 2 Ballistic Cannon . | . . . . . Launcher 3 | . 2 . 1 . Special Weapon 1 | . . . 1 . Impact Weapon . | . . . . . Slashing Weapon 1 | . . . . 1 Piercing Weapon . | . . . . . Special Melee Weapon . | . . . . . Unidentified Prototypes 1 | . . 1 . . Parts Lost 22 | . . 4 7 11 Power 2 | . . 1 1 . Propulsion 9 | . . 2 2 5 Utility 2 | . . . . 2 Weapon 9 | . . 1 4 4 Highest Loss Streak 7 | . . 4 7 7 Average Slot Usage (%) 65 | . 89 67 53 57 Engine 6 | . 14 9 3 . Core 1 | . . . . 5 Treads 1 | . . 3 . . Leg 6 | . . . 5 15 Wheel 8 | . 28 11 . . Device 2 | . . . . 6 Storage 8 | . 14 11 11 1 Processor 8 | . 3 11 11 9 Hackware 2 | . . . . 7 Energy Gun 7 | . 7 7 10 6 Energy Cannon 1 | . 2 3 . . Ballistic Gun 7 | . 11 9 3 4 Launcher 1 | . 6 . . . Special Weapon 1 | . . . 6 . Naked Turns . | . . . . . Heaviest Build 16 | 12 14 15 16 13 Greatest Support 50 | 20 20 20 20 50 Greatest Overweight (x) 4 | 2 . 4 2 2 Average Overweight (x) . | . . . 1 . Largest Inventory Capacity 6 | 6 6 6 6 6 Average Capacity 5 | 4 6 6 6 4 Most Carried 6 | 2 6 6 6 4 Average Carried 2 | . 2 5 2 . Final Capacity 6 | 6 6 6 6 4 Final Carried 6 | . 6 5 1 3 Class Distribution -------------------- 73% | Mutant 19% | Scavenger-Mutant 7% | Scavenger-Gunner Dominant Class ---------------- Mutant | -10/Materials Mutant | -9/Materials Mutant | -9/Mines Scavenger-Mutant | -8/Materials Resources | -11 -10 -9 -9 -8 ----------- Run | Scr Mat Mat Min Mat Matter Collected 748 | 110 117 96 143 282 Remotely 49 | . . . . 49 Salvage Created 711 | . 210 108 67 326 Parts 56 | . 19 15 2 20 Haulers Intercepted . | . . . . . Recyclers Shooed . | . . . . . Parts Field Recycled . | . . . . . Retrieved Matter . | . . . . . Parts Self-Destructed . | . . . . . Prevented . | . . . . . Kills | -11 -10 -9 -9 -8 ------- Run | Scr Mat Mat Min Mat Combat Hostiles Destroyed 20 | . 5 5 2 8 Melee 2 | . . . . 2 Guns 14 | . 1 5 2 6 Cannons 1 | . 1 . . . AOE 3 | . 3 . . . Classes Destroyed 9 | . 6 1 2 . Worker 1 | . 1 . . . Builder 2 | . 2 . . . Recycler 1 | . 1 . . . Watcher 1 | . 1 . . . Swarmer 10 | . 3 4 . 3 Grunt 7 | . 2 . . 5 Brawler 1 | . . . 1 . Sentry 1 | . . 1 . . Demolisher 1 | . . . 1 . Best Kill Streak 9 | . 9 4 1 3 Combat Bots Only 4 | . 3 4 1 3 Max Kills in Single Turn 3 | . 3 1 1 2 Gunslinging 1 | . . . . 1 Exploded 2 | . 2 . . . Melee 1 | . . . . 1 Uniques/NPCs Destroyed . | . . . . . Combat | -11 -10 -9 -9 -8 -------- Run | Scr Mat Mat Min Mat Damage Taken 2764 | . 221 335 749 1459 Core 867 | . 55 78 181 553 Absorbed by Shields . | . . . . . Core Remaining (%) 71 | 100 78 . 35 . Volleys Fired 67 | 1 13 18 11 24 Largest 3 | 2 2 2 2 3 Hottest 110 | 70 110 79 79 110 Shots Fired 104 | 2 22 27 16 37 Gun 94 | 2 13 27 16 36 Cannon 1 | . 1 . . . Launcher 8 | . 8 . . . Special 1 | . . . . 1 Kinetic 63 | 1 12 18 8 24 Thermal 33 | 1 2 9 8 13 Explosive 8 | . 8 . . . Electromagnetic . | . . . . . Robot Hit Streak 8 | . 4 4 8 4 Robot Miss Streak 7 | 2 4 4 7 4 Penetration Max . | . . . . . Secondary Targets 3 | . . 1 1 1 Max Gunslinging Chain 1 | . . 1 1 1 Shots Hit Robots 53 | . 9 14 8 22 Core Hits 49 | 1 14 6 4 24 Critical Hits . | . . . . . Critical Kills . | . . . . . Critical Parts Destroyed . | . . . . . Melee Attacks 3 | . . . . 3 Impact . | . . . . . Slashing 3 | . . . . 3 Piercing . | . . . . . Sneak Attacks . | . . . . . Combat Hostiles . | . . . . . Follow-up Attacks . | . . . . . Damage Inflicted 1352 | 9 611 199 125 408 Guns 698 | 9 48 199 125 317 Cannons 17 | . 17 . . . Explosions 546 | . 546 . . . Melee 36 | . . . . 36 Ramming 52 | . . . . 52 Kinetic 441 | 9 36 135 53 208 Thermal 277 | . 29 64 72 112 Explosive 546 | . 546 . . . Electromagnetic . | . . . . . Impact . | . . . . . Slashing 36 | . . . . 36 Piercing . | . . . . . Highest Corruption 4 | . . . . 4 Average Corruption 3 | . . . . 3 Corruption Purged . | . . . . . Effects 8 | . . . . 8 Message Errors 1 | . . . . 1 Matter Fused 3 | . . . . 3 Heat Flow Errors 2 | . . . . 2 Energy Discharges 1 | . . . . 1 Data Loss (minor) 1 | . . . . 1 Overload Shots . | . . . . . Overflow Damage 66 | . 66 . . . Projectiles . | . . . . . Explosions 66 | . 66 . . . Melee . | . . . . . Knockbacks . | . . . . . Impact . | . . . . . Kinetic . | . . . . . Secondary . | . . . . . Self-Inflicted Damage 140 | . 122 . . 18 Shots 5 | . 5 . . . Rammed 18 | . . . . 18 Targets Rammed 21 | . . . . 21 Kicked 3 | . . . . 3 Crushed . | . . . . . Highest Temperature 239 | 30 48 50 21 239 Average Temperature 28 | 18 14 20 10 66 Received Heat Transfer 771 | . 12 63 12 684 Siege Activations . | . . . . . Robots Corrupted . | . . . . . Combat Hostiles . | . . . . . Parts Fried . | . . . . . Impact Corruptions . | . . . . . Robots Melted . | . . . . . Combat Hostiles . | . . . . . Parts Melted . | . . . . . Heat Transferred 691 | . 74 148 185 284 Parts Sabotaged . | . . . . . Parts Stolen . | . . . . . Parts Stripped . | . . . . . Power Chain Reactions . | . . . . . Missiles Intercepted . | . . . . . Alert | -11 -10 -9 -9 -8 ------- Run | Scr Mat Mat Min Mat Peak Influence 172 | . 172 152 88 140 Average Influence 63 | . 63 120 39 44 Maximum Alert Level . | . . . . . Low Security (%) 100 | 100 100 100 100 100 Level 1 . | . . . . . Level 2 . | . . . . . Level 3 . | . . . . . Level 4 . | . . . . . Level 5 . | . . . . . High Security . | . . . . . Max Security . | . . . . . Squads Dispatched 3 | . 1 . . 2 Investigation 1 | . 1 . . . Extermination . | . . . . . Reinforcement 1 | . . . . 1 Assault . | . . . . . Garrison 1 | . . . . 1 Intercept . | . . . . . Construction Impeded . | . . . . . Haulers Reinforced . | . . . . . Stealth | -11 -10 -9 -9 -8 --------- Run | Scr Mat Mat Min Mat Distress Signals 2 | . . 2 . . Communications Jammed . | . . . . . Distress Signals . | . . . . . Times Spotted 39 | . 11 5 9 14 Peak Tracking Total 8 | . 8 5 4 6 Tactical Retreats 5 | . 3 . . 2 Traps | -11 -10 -9 -9 -8 ------- Run | Scr Mat Mat Min Mat Traps Triggered 2 | . 1 1 . . Indirectly . | . . . . . Trap Hack Attempts . | . . . . . Triggered . | . . . . . Disarmed . | . . . . . Reprogrammed . | . . . . . Reused . | . . . . . Traps Extracted . | . . . . . Installed . | . . . . . Triggered . | . . . . . Machines | -11 -10 -9 -9 -8 ---------- Run | Scr Mat Mat Min Mat Machines Disabled 1 | . 1 . . . Max in Single Turn 1 | . 1 . . . Machines Sabotaged . | . . . . . Garrisons Compromised . | . . . . . Overloaded Fab Kills . | . . . . . Fab Network Shutdowns . | . . . . . Hacking | -11 -10 -9 -9 -8 --------- Run | Scr Mat Mat Min Mat Machines Accessed . | . . . . . Terminals . | . . . . . Fabricators . | . . . . . Repair Stations . | . . . . . Recycling Units . | . . . . . Scanalyzers . | . . . . . Garrison Access . | . . . . . Total Hacks . | . . . . . Successful . | . . . . . Failed . | . . . . . Catastrophic . | . . . . . Database Lockouts . | . . . . . Manual . | . . . . . Terminals . | . . . . . Fabricators . | . . . . . Repair Stations . | . . . . . Recycling Units . | . . . . . Scanalyzers . | . . . . . Garrison Access . | . . . . . Terminal Hacks . | . . . . . Fabricator Hacks . | . . . . . Repair Station Hacks . | . . . . . Recycling Unit Hacks . | . . . . . Scanalyzer . | . . . . . Garrison Access Hacks . | . . . . . Unauthorized Hacks . | . . . . . Terminals . | . . . . . Fabricators . | . . . . . Repair Stations . | . . . . . Recycling Units . | . . . . . Scanalyzers . | . . . . . Garrison Access . | . . . . . Data Cores Recovered . | . . . . . Used . | . . . . . Hacking Detections . | . . . . . Full Trace Events . | . . . . . Feedback Events . | . . . . . Feedback Blocked . | . . . . . Robot Schematics Acquired . | . . . . . Robots Built . | . . . . . Matter . | . . . . . Time . | . . . . . Total Robot Build Rating . | . . . . . Part Schematics Acquired . | . . . . . Parts Built . | . . . . . Matter . | . . . . . Time . | . . . . . Total Part Build Rating . | . . . . . Parts Repaired . | . . . . . Time . | . . . . . Parts Recycled . | . . . . . Recycled Matter . | . . . . . Retrieved Matter . | . . . . . Retrieved Components . | . . . . . Parts Scanalyzed . | . . . . . Part Schematics Acquired . | . . . . . Parts Damaged . | . . . . . Bothacking | -11 -10 -9 -9 -8 ------------ Run | Scr Mat Mat Min Mat Used RIF Installer . | . . . . . Robots Hacked . | . . . . . Non-combat . | . . . . . Combat . | . . . . . Robot Hacks Applied . | . . . . . Relay Couplers Released . | . . . . . Robots Rewired . | . . . . . Allies Hacked . | . . . . . Hacks Repelled . | . . . . . Allies | -11 -10 -9 -9 -8 -------- Run | Scr Mat Mat Min Mat Total Allies 3 | . . . 3 . Largest Group 2 | . . . 2 2 Highest-Rated Group 54 | . . . 54 54 Highest-Rated Ally 31 | . . . 31 31 Total Orders . | . . . . . Ally Attacks 7 | . . . 1 6 Total Damage 125 | . . . 20 105 Kills . | . . . . . Allies Corrupted . | . . . . . Allies Melted . | . . . . . Intel | -11 -10 -9 -9 -8 ------- Run | Scr Mat Mat Min Mat Robot Analysis Total . | . . . . . Derelict Logs Recovered 1 | . . . 1 . Drone Launches . | . . . . . Drone Recoveries . | . . . . . Exploration | -11 -10 -9 -9 -8 ------------- Run | Scr Mat Mat Min Mat Turns Passed 1297 | 61 256 317 233 430 Spaces Moved 940 | 40 257 244 136 263 Core 140 | 12 . 8 96 24 Treads 76 | . . 69 7 . Legs 260 | . . . 33 227 Wheels 452 | 28 257 167 . . Hover 12 | . . . . 12 Flight . | . . . . . Fastest Speed 50 | 50 80 80 100 50 Average Speed 106 | 81 80 107 143 117 Slowest Speed 250 | 150 80 250 160 150 Overloaded Moves . | . . . . . Propulsion Burnouts . | . . . . . Robots Hopped . | . . . . . Cave-ins Triggered . | . . . . . Exploration Rate (%) 21 | 4 37 23 30 12 Regions Visited 4 Branch Regions 1 Pre-discovered Areas 1 | . . . 1 . Known Exits Taken . | . . . . . Unknown Exits Taken 4 | 1 1 1 1 . Scrap Searched . | . . . . . Spaces Dug . | . . . . . Terrain Destroyed 14 | . 14 . . . Melee . | . . . . . Projectile . | . . . . . AOE 14 | . 14 . . . Actions | -11 -10 -9 -9 -8 --------- Run | Scr Mat Mat Min Mat Total 1136 | 66 288 273 159 350 Wait 7 | 4 2 . 1 . Move 936 | 39 256 243 135 263 Hop . | . . . . . Pick Up 45 | 9 9 4 3 20 Fast Attach 1 | . . 1 . . Attach 36 | 6 4 3 6 17 Detach 1 | . 1 . . . Swap 8 | 4 1 1 1 1 Drop 11 | 3 2 3 2 1 Fire 67 | 1 13 18 11 24 Melee 3 | . . . . 3 Ram 12 | . . . . 12 Kick 9 | . . . . 9 Crush . | . . . . . Escape Stasis . | . . . . . Rewire . | . . . . . Trap . | . . . . . Miscellaneous . | . . . . . Route ------- -11/Scrapyard -10/Materials -9/Materials -9/Mines -8/Materials History --------- Turn | Location | Event 25 | -11/Scrapyard | Discovered new exit (range 16) 62 | -11/Scrapyard | Entered Materials 296 | -10/Materials | Discovered new exit (range 9) 317 | -10/Materials | Build established: Mutant 318 | -10/Materials | Entered another Materials area 318 | -9/Materials | Evolved 2 slots: Propulsion x2 530 | -9/Materials | Lost 4 parts (1p2n1w) 593 | -9/Materials | Met 8R-AWN 619 | -9/Materials | Discovered new exit (range 11) 635 | -9/Materials | Entered Mines 637 | -9/Mines | Followed 8R-AWN into the Mines 641 | -9/Mines | Escorted by a lone wolf Derelict 663 | -9/Mines | Learned location of Storage (-8) 675 | -9/Mines | Assembled infested the area 687 | -9/Mines | Received a Rocket Launcher from a helpful Derelict 716 | -9/Mines | Core integrity fell below 50% 752 | -9/Mines | Lost 7 parts (1p2n4w) 817 | -9/Mines | Learned location of 1 exit from Lower Caves 862 | -9/Mines | Discovered new exit (range 4) 868 | -9/Mines | Entered Materials 868 | -8/Materials | Accompanied by 2 allies 868 | -8/Materials | Evolved 2 slots: Utility x1, Weapon x1 873 | -8/Materials | Led the pair of lost Derelicts to an unsafe place 978 | -8/Materials | Lost 7 parts (2n2u3w) 987 | -8/Materials | Core integrity fell below 50% 999 | -8/Materials | Core integrity fell below 20% 1272 | -8/Materials | Garrison activated, responded to threat 1298 | -8/Materials | Destroyed by Y-45 Defender with Beam Rifle Last Messages --------------- 01213_ System corrupted: Matter fused (-7). 01216_ Dropped Lgt. Nuclear Core. 01216_ Acquired 40 matter. 01232_ Acquired Lgt. Assault Rifle. 01233_ Acquired 7 matter. 01236_ S-10 Pest destroyed. 01236_ Switching to secondary target: S-10 Pest. 01236_ S-10 Pest destroyed. 01240_ K-01 Serf collects debris. 01246_ Acquired Flight Unit. 01248_ K-01 Serf collects debris. 01250_ Acquired Lgt. Assault Rifle. 01251_ K-01 Serf collects debris. 01253_ Acquired Lgt. Ion Engine. 01254_ Acquired 11 matter. 01255_ K-01 Serf collects debris. 01272_ W-25 Informer calls for garrison support. 01272_ ALERT: Activating Garrison Access M001. 01284_ System corrupted: Heat flow error (+120). 01293_ U-05 Engineer builds a Door. Map ----- +----------------------------------------------------+ | ?# *! %* #??????????????????????? | | ?# ##########+### #??????????????????????? | | ?## ##???# # ###??????????????????????? | | ??# #????# """""# #????????????????????????? | | ??# #????# """""# #????????????????????????? | | ??# #????# """""# #????????????????????????? | | ??# #????# """""# % #????????????????????????? | | ??# #????# """""# =#????????????????????????? | | ??# #????# """""#[= #????????????????????????? | | ??# #????# """""# #????????????????????????? | | ??# ?????# # #????????????????????????? | | ??# ?????########## #????????????????????????? | | ??# ??????????????# #????????????????????????? | | ??# ??????????????# #????????????????????????? | | ??# ??????????????# #????????????????????????? | | ??# ??????????????# #????????????????????????? | | ??? ??????????????# #????????????????????????? | | ????????????????????# #????????????????????????? | | ????????????????????# #????????????????????????? | | ????????????????????# #????????????????????????? | | ????????????????????# #????????????????????????? | | ????????????????????# #????????????????????????? | | ????????????????????# #????????????????????????? | | ????????????????????# %#???????? #????????????? | | ????????????????????# ###### #????????????? | | ????????????????????# @ ^ ????????? | | ????????????????????# ????????? | | ????????????????????# u Y ????????? | | ?????????????????? #######+######+#?????????? | | ??????????????? #????????????????????????? | | ????????????? u #????????????????????????? | | ????????????######### #????????????????????????? | | ????????????????????# #????????????????????????? | | ????????????????????# #????????????????????????? | | ????????????????????# #????????????????????????? | | ????????????????????# #????????????????????????? | | ????????????????????# #????????????????????????? | | ????????????????????# #????????????????????????? | | ???????????????????? #????????????????????????? | | ???????????????????? ????????????????????????? | | ???????????????????? ????????????????????????? | | ???????????????????? ?????????????????????????? | | ?????????????????????????????????????????????????? | | ?????????????????????????????????????????????????? | | ?????????????????????????????????????????????????? | | ?????????????????????????????????????????????????? | | ?????????????????????????????????????????????????? | | ?????????????????????????????????????????????????? | | ?????????????????????????????????????????????????? | | ?????????????????????????????????????????????????? | +----------------------------------------------------+ Best States ------------- Heat Dissipation 50 Energy Generation 14 Energy Capacity 250 Matter Stores 300 Matter Capacity 300 Sight Range 16 Terrain Scan Density 85 Evasion (%) 53 Recoil Reduction 1 Offensive Hacking 10 Item Schematics ----------------- None Robot Schematics ------------------ None Fabricated ------------ Nothing Alien Tech Used ----------------- None Achievements -------------- None Challenges ------------ None Game ------ Seed ShieldBattleScrap Manual? 0 Play Time 00:22:24 Cumulative 4.1 hours Start 2020.01.31 @ 23:01:01 End 2020.02.01 @ 11:22:35 Sessions 3 Manual Loads 0 Difficulty Rogue Special Mode None Game No. 4 Rogue 4 Adventurer 0 Explorer 0 Win Type - Total 0 Types 0/0/0/0/0/0/0 Lore% 1 Gallery% 10 Achievement% 8 Wizard Run 0 Options --------- ASCII 0 Keyboard 0 Movement Mouse Keybinds 0 Fullscreen 1 Font 18/SmallcapsGlow Map View 76x50 Tactical HUD 1 Map Filters NONE Filters NONE Steam 1 RUN: d4cc45e5-c562-4250-bb60-61bb04099513